bitfinex/quotes_SOLUSD_20240613
["timestamp","ask_amount","ask_price","bid_price","bid_amount"]
[1718306797310,0.8490378,148.86,148.85,2.4857]
[1718306797604,0.8490378,148.86,148.82,17.4027]
[1718306797768,0.8490378,148.86,148.85,2.4857]
[1718306798607,0.8490378,148.86,148.84,2.4858]
[1718306799275,0.8490378,148.86,148.85,2.4857]
[1718306799476,0.8490378,148.86,148.84,2.4858]
[1718306800184,0.8490378,148.86,148.85,2.4857]
[1718306805593,0.8490378,148.86,148.85,22.4857]
[1718306808995,0.8490378,148.86,148.85,30.0657]
[1718306809391,0.8490378,148.86,148.85,35.0371]
[1718306813204,0.8490378,148.86,148.85,27.4571]
[1718306813503,0.8490378,148.86,148.85,20.0]
[1718306813804,0.8490378,148.86,148.84,20.0]
[1718306814105,0.8490378,148.86,148.85,2.4857]
[1718306814427,0.8490378,148.86,148.84,20.0]
[1718306814606,0.8490378,148.86,148.85,1.20270062]
[1718306814795,0.8490378,148.86,148.85,2.4857]
[1718306814993,0.8490378,148.86,148.85,10.0657]
[1718306816018,0.8490378,148.86,148.84,20.0]
[1718306816307,0.8490378,148.86,148.85,7.4571]
[1718306816513,0.8490378,148.86,148.85,15.0371]
[1718306816696,0.8490378,148.86,148.85,10.0657]
[1718306816877,0.8490378,148.86,148.84,2.4858]
[1718306817302,0.8490378,148.86,148.82,20.0]
[1718306817505,0.8490378,148.86,148.82,4.9723]
[1718306817675,0.8490378,148.86,148.84,2.4858]
[1718306818098,0.8490378,148.86,148.83,22.4859]
[1718306818320,0.8490378,148.86,148.84,2.4858]
[1718306818901,0.8490378,148.86,148.83,2.4859]
[1718306819302,0.8490378,148.86,148.82,20.0]
[1718306819303,0.8490378,148.86,148.84,2.4858]
[1718306820005,0.8490378,148.86,148.83,2.4859]
[1718306820599,0.8490378,148.86,148.81,22.4862]
[1718306820801,0.8490378,148.86,148.82,2.486]
[1718306821324,0.8490378,148.86,148.83,2.486]
[1718306822024,0.8490378,148.86,148.82,2.4861]
[1718306823206,0.8490378,148.86,148.81,20.0]
[1718306823207,0.8490378,148.86,148.81,22.4862]
[1718306823512,0.8490378,148.86,148.8,2.4864]
[1718306823702,0.8490378,148.86,148.78,2.4868]
[1718306823703,2.4859,148.84,148.78,2.4868]
[1718306823898,5.8202378,148.86,148.78,2.4868]
[1718306823899,47.9958,148.85,148.78,2.4868]
[1718306824116,15.8943,148.84,148.76,12.4359]
[1718306824333,0.34,148.83,148.78,2.4867]
[1718306824710,0.34,148.83,148.79,2.4866]
[1718306824913,45.34,148.83,148.79,2.4866]
[1718306825609,45.34,148.83,148.78,2.4867]
[1718306825806,0.17,148.82,148.75,9.9491]
[1718306826231,0.17,148.82,148.75,17.4112]
[1718306826416,0.17,148.82,148.76,7.4616]
[1718306826614,0.17,148.82,148.79,2.4866]
[1718306827611,0.17,148.82,148.78,2.4868]
[1718306827811,45.34,148.83,148.8,2.4865]
[1718306828151,0.34,148.83,148.8,2.4865]
[1718306828441,15.8943,148.84,148.81,2.4863]
[1718306830432,0.17,148.83,148.79,2.4866]
[1718306830623,0.34,148.83,148.78,22.4868]
[1718306830823,0.34,148.83,148.79,2.4867]
[1718306831027,0.34,148.83,148.78,2.4868]
[1718306831617,2.6562,148.82,148.76,2.4871]
[1718306831931,2.6562,148.82,148.75,2.4873]
[1718306831932,2.6564,148.81,148.75,2.4873]
[1718306832130,0.34,148.8,148.75,2.4873]
[1718306834234,0.34,148.8,148.74,20.0]
[1718306834235,0.34,148.8,148.76,2.4872]
[1718306835432,0.17,148.8,148.77,2.487]
[1718306835717,45.17,148.81,148.77,2.4869]
[1718306836135,45.17,148.81,148.78,2.4868]
[1718306836843,45.17,148.81,148.77,2.4869]
[1718306839645,6.0257,148.82,148.8,2.4864]
[1718306839846,15.8943,148.84,148.78,9.9474]
[1718306840056,15.8943,148.84,148.8,2.4864]
[1718306840262,15.8943,148.84,148.79,2.4866]
[1718306840471,18.3801,148.84,148.78,2.4868]
[1718306840930,18.3801,148.84,148.74,20.0]
[1718306840931,15.8943,148.84,148.75,4.9745]
[1718306841135,7.59,148.8,148.77,2.487]
[1718306841340,7.59,148.79,148.77,2.487]
[1718306842042,7.59,148.79,148.76,2.4871]
[1718306843125,7.59,148.79,148.75,2.4872]
[1718306843750,7.59,148.78,148.73,4.9752]
[1718306843931,7.59,148.77,148.74,2.4874]
[1718306844136,7.59,148.77,148.73,24.9752]
[1718306844333,7.59,148.77,148.74,2.4874]
[1718306845652,7.59,148.77,148.75,2.4873]
[1718306847749,15.8943,148.84,148.77,12.435]
[1718306847930,7.59,148.82,148.78,4.9736]
[1718306848555,7.59,148.82,148.79,2.4866]
[1718306851056,18.3802,148.84,148.79,2.4866]
[1718306851236,45.51,148.83,148.79,2.4866]
[1718306851447,45.51,148.83,148.78,2.4868]
[1718306853061,45.51,148.83,148.79,2.4867]
[1718306853436,45.51,148.83,148.8,2.4865]
[1718306853665,45.51,148.83,148.8,2.4864]
[1718306855861,45.51,148.83,148.79,2.4866]
[1718306858768,45.51,148.83,148.8,2.4865]
[1718306859976,0.51,148.83,148.8,2.4865]
[1718306861979,0.51,148.83,148.79,2.4866]
[1718306862848,0.51,148.83,148.8,2.4865]
[1718306863459,0.51,148.83,148.79,2.4866]
[1718306864065,0.51,148.83,148.76,4.9741]
[1718306864265,2.4862,148.82,148.77,2.4869]
[1718306864491,0.51,148.81,148.77,2.4869]
[1718306865875,2.9964,148.81,148.76,22.4871]
[1718306866175,2.9964,148.81,148.73,2.4876]
[1718306866176,2.4868,148.79,148.73,2.4876]
[1718306866697,2.9969,148.78,148.73,2.4876]
[1718306866863,47.9969,148.78,148.73,2.4876]
[1718306867070,45.51,148.78,148.73,2.4876]
[1718306870106,45.51,148.78,148.74,2.4875]
[1718306870311,45.51,148.78,148.73,2.4876]
[1718306871207,45.51,148.78,148.74,2.4875]
[1718306873020,7.6,148.75,148.74,2.4875]
[1718306873700,45.51,148.78,148.77,2.487]
[1718306873890,53.11,148.78,148.76,2.4871]
[1718306874336,53.11,148.78,148.75,2.4873]
[1718306874609,7.6,148.77,148.75,2.4873]
[1718306875106,7.6,148.77,148.73,4.9751]
[1718306875107,7.6,148.77,148.74,2.4874]
[1718306875530,45.51,148.78,148.74,2.4874]
[1718306875710,7.6,148.77,148.74,2.4874]
[1718306876212,45.51,148.78,148.75,2.4873]
[1718306876408,7.6,148.77,148.75,2.4873]
[1718306877014,7.6,148.77,148.74,2.4874]
[1718306877609,7.40454396,148.77,148.74,2.4874]
[1718306879111,7.40454396,148.77,148.75,2.4873]
[1718306879498,7.40454396,148.77,148.74,2.4874]
[1718306881502,7.6,148.76,148.71,4.976]
[1718306881701,7.6,148.76,148.73,2.4876]
[1718306882615,7.6,148.76,148.74,2.4875]
[1718306884442,45.51,148.78,148.75,2.4873]
[1718306884443,7.6,148.77,148.75,2.4873]
[1718306884802,7.6,148.77,148.74,2.4874]
[1718306885929,45.51,148.78,148.74,2.4874]
[1718306886105,7.6,148.76,148.74,2.4874]
[1718306886524,45.51,148.78,148.74,2.4874]
[1718306886713,7.6,148.77,148.75,2.4873]
[1718306887327,7.6,148.77,148.74,2.4874]
[1718306888904,45.51,148.78,148.74,2.4874]
[1718306889107,7.6,148.77,148.74,2.4874]
[1718306891124,45.51,148.78,148.74,2.4874]
[1718306891427,7.6,148.77,148.74,2.4874]
[1718306893812,7.6,148.77,148.73,2.4876]
[1718306894136,7.6,148.76,148.73,2.4876]
[1718306895606,7.6,148.76,148.74,2.4875]
[1718306896238,7.6,148.76,148.73,2.4876]
[1718306897617,45.51,148.78,148.74,2.4875]
[1718306897821,7.6,148.76,148.74,2.4875]
[1718306898312,7.6,148.77,148.74,2.4875]
[1718306899636,45.51,148.78,148.74,2.4875]
[1718306899832,7.6,148.77,148.74,2.4875]
[1718306900337,45.51,148.78,148.74,2.4875]
[1718306900728,7.6,148.76,148.74,2.4875]
[1718306901320,15.1891,148.82,148.68,13.75]
[1718306901520,7.6,148.78,148.72,7.6]
[1718306901815,0.34,148.77,148.68,6.15]
[1718306902023,0.34,148.76,148.69,20.0]
[1718306902226,2.4875,148.74,148.69,2.4883]
[1718306902540,5.3144,148.76,148.69,2.4883]
[1718306902541,7.6,148.72,148.69,2.4883]
[1718306903040,0.34,148.73,148.68,2.4885]
[1718306903041,7.6,148.71,148.68,2.4885]
[1718306905455,7.6,148.72,148.7,2.4881]
[1718306905738,0.34,148.73,148.7,2.4881]
[1718306905941,0.34,148.73,148.71,2.488]
[1718306905942,7.94,148.73,148.71,2.488]
[1718306906125,7.94,148.73,148.7,2.4881]
[1718306909428,7.6,148.73,148.71,2.4879]
[1718306909622,7.6,148.74,148.71,2.4879]
[1718306909827,7.6,148.74,148.7,2.4881]
[1718306910151,2.4874,148.75,148.7,2.4881]
[1718306910152,7.77,148.73,148.7,2.4881]
[1718306910515,7.6,148.72,148.69,2.4882]
[1718306911866,7.6,148.72,148.7,2.4882]
[1718306912647,17.6762,148.77,148.68,17.5539]
[1718306912853,7.6,148.75,148.72,2.4878]
[1718306913067,7.6,148.76,148.73,2.4876]
[1718306913654,15.1891,148.77,148.73,2.4876]
[1718306913827,7.6,148.76,148.73,2.4876]
[1718306914656,7.6,148.76,148.73,2.4877]
[1718306914837,7.6,148.76,148.74,2.4875]
[1718306915551,7.6,148.76,148.69,6.083]
[1718306915552,16.2709,148.81,148.73,1.34211145]
[1718306915764,7.6,148.79,148.76,2.4871]
[1718306916644,7.6,148.79,148.75,2.4872]
[1718306917351,18.7572,148.81,148.75,2.4872]
[1718306917553,7.6,148.79,148.75,2.4872]
[1718306918356,45.0,148.8,148.76,2.4871]
[1718306918555,8.11,148.79,148.76,2.4871]
[1718306918853,0.51,148.79,148.76,2.4871]
[1718306919146,16.2709,148.81,148.75,7.4621]
[1718306919357,253.1,148.82,148.77,2.4869]
[1718306919523,253.1,148.82,148.77,13.77695189]
[1718306919725,253.1,148.82,148.8,2.4865]
[1718306921228,253.1,148.82,148.79,2.4866]
[1718306924035,253.1,148.82,148.8,2.4865]
[1718306925052,253.1,148.82,148.81,2.4863]
[1718306925747,253.1,148.82,148.78,29.9815]
[1718306925748,253.1,148.82,148.8,2.4864]
[1718306929640,253.1,148.82,148.78,7.6]
[1718306929851,253.1,148.82,148.74,6.4038]
[1718306929852,7.6,148.8,148.74,6.4038]
[1718306930054,7.6,148.8,148.77,2.4869]
[1718306930256,7.77,148.81,148.77,2.4869]
[1718306930447,0.17,148.81,148.77,2.4869]
[1718306930666,7.6,148.8,148.77,2.4869]
[1718306935988,255.5862,148.82,148.77,2.4869]
[1718306936191,253.1,148.82,148.77,2.4869]
[1718306936481,7.6,148.8,148.77,2.4869]
[1718306937078,7.6,148.79,148.76,2.4871]
[1718306938482,7.6,148.78,148.76,2.4871]
[1718306938986,7.6,148.78,148.75,22.4873]
[1718306939587,7.6,148.78,148.76,2.4872]
[1718306940799,12.5724,148.82,148.75,22.4873]
[1718306940962,7.6,148.77,148.75,2.4873]
[1718306942102,7.6,148.77,148.76,2.4872]
[1718306942885,7.6,148.77,148.72,4.9755]
[1718306943087,2.6569,148.78,148.73,2.4876]
[1718306943291,7.6,148.74,148.73,2.4876]
[1718306943695,0.17,148.78,148.74,2.4875]
[1718306943997,7.6,148.75,148.74,2.4875]
[1718306944766,7.6,148.75,148.73,2.4876]
[1718306944968,7.6,148.74,148.73,2.4876]
[1718306945605,7.6,148.74,148.72,4.9757]
[1718306945606,0.17,148.78,148.74,2.4875]
[1718306945894,7.6,148.75,148.74,2.4875]
[1718306946107,0.17,148.78,148.75,2.4873]
[1718306946298,7.6,148.76,148.75,2.4873]
[1718306948110,16.3074,148.79,148.77,2.487]
[1718306948111,0.17,148.79,148.77,2.487]
[1718306948273,7.6,148.78,148.77,2.487]
[1718306948677,7.6,148.78,148.76,2.4871]
[1718306948907,7.6,148.78,148.77,2.487]
[1718306949199,7.6,148.78,148.76,2.4871]
[1718306949497,7.6,148.78,148.77,2.487]
[1718306950000,0.34,148.8,148.77,2.487]
[1718306950199,7.6,148.78,148.77,2.487]
[1718306950382,30.4,148.82,148.78,2.4868]
[1718306950697,7.6,148.79,148.78,2.4868]
[1718306951603,7.6,148.79,148.76,2.4871]
[1718306951809,7.6,148.78,148.76,2.4871]
[1718306952380,7.6,148.78,148.75,22.4872]
[1718306952586,7.6,148.77,148.75,2.4873]
[1718306953899,7.6,148.77,148.76,2.4872]
[1718306954102,7.6,148.77,148.75,2.4872]
[1718306954608,7.6,148.77,148.76,2.4872]
[1718306955381,7.6,148.77,148.75,2.4873]
[1718306955785,7.6,148.77,148.76,2.4872]
[1718306956287,2.4864,148.81,148.76,2.4872]
[1718306956489,7.6,148.77,148.76,2.4872]
[1718306956713,0.51,148.8,148.76,2.4872]
[1718306956919,7.6,148.78,148.76,2.4872]
[1718306957904,0.51,148.8,148.76,2.4872]
[1718306958078,7.6,148.78,148.76,2.4872]
[1718306961917,7.6,148.78,148.75,2.4872]
[1718306962097,7.6,148.78,148.75,2.4873]
[1718306962292,7.6,148.78,148.76,2.4871]
[1718306962516,7.6,148.79,148.77,2.487]
[1718306963788,7.6,148.79,148.76,2.4871]
[1718306965213,0.17,148.8,148.77,2.487]
[1718306966324,7.6,148.79,148.77,2.487]
[1718306970021,7.6,148.79,148.76,2.4871]
[1718306970192,0.17,148.8,148.76,2.4871]
[1718306970395,7.6,148.78,148.75,2.4873]
[1718306970592,7.6,148.78,148.76,2.4872]
[1718306970797,7.6,148.78,148.75,4.9747]
[1718306971035,7.6,148.78,148.76,2.4872]
[1718306971410,7.6,148.78,148.77,2.487]
[1718306972531,7.6,148.78,148.76,2.4871]
[1718306972730,7.6,148.78,148.77,2.487]
[1718306973104,7.6,148.78,148.75,4.9746]
[1718306973105,7.6,148.78,148.76,2.4871]
[1718306973517,7.6,148.78,148.77,2.487]
[1718306975535,7.6,148.78,148.74,20.0]
[1718306975734,7.6,148.78,148.76,2.4871]
[1718306976429,7.6,148.78,148.74,32.4376]
[1718306976628,7.6,148.78,148.76,2.487]
[1718306978335,7.6,148.78,148.77,2.487]
[1718306978708,7.6,148.78,148.76,2.4871]
[1718306980750,7.6,148.78,148.77,2.487]
[1718306982531,0.17,148.8,148.78,2.4868]
[1718306982735,7.6,148.79,148.78,2.4868]
[1718306982924,7.77,148.79,148.77,2.4869]
[1718306985631,7.6,148.78,148.77,2.4869]
[1718306987173,7.6,148.78,148.76,2.4871]
[1718306988647,7.6,148.78,148.77,2.487]
[1718306988855,0.17,148.79,148.77,2.487]
[1718306989153,7.6,148.78,148.77,2.487]
[1718306991225,7.6,148.78,148.75,2.4873]
[1718306991469,7.6,148.78,148.76,2.4872]
[1718306991627,7.6,148.78,148.75,2.4873]
[1718306991822,0.17,148.79,148.77,2.4869]
[1718306992026,7.77,148.79,148.77,2.4869]
[1718306995364,0.17,148.79,148.77,2.4869]
[1718306995655,7.77,148.79,148.77,2.4869]
[1718306998848,7.77,148.79,148.76,2.4871]
[1718306999239,0.34,148.8,148.77,2.487]
[1718306999552,7.6,148.79,148.77,2.487]
[1718306999754,7.6,148.79,148.76,2.4871]
[1718307000126,7.6,148.78,148.76,2.4871]
[1718307000330,47.6563,148.81,148.76,2.4871]
[1718307000527,7.6,148.78,148.76,2.4871]
[1718307001033,7.6,148.77,148.74,20.0]
[1718307001233,7.6,148.77,148.74,2.4875]
[1718307001536,2.9966,148.8,148.75,2.4873]
[1718307001856,7.6,148.77,148.75,2.4873]
[1718307002061,7.6,148.77,148.76,2.4872]
[1718307002563,7.6,148.77,148.75,2.4872]
[1718307003633,7.6,148.77,148.76,2.4872]
[1718307004245,7.6,148.78,148.76,2.4872]
[1718307005561,0.51,148.8,148.76,2.4872]
[1718307006044,0.51,148.8,148.77,2.487]
[1718307006249,7.6,148.79,148.77,2.487]
[1718307007162,7.6,148.79,148.76,2.4871]
[1718307008352,0.51,148.8,148.76,2.4871]
[1718307008539,0.51,148.8,148.75,2.4873]
[1718307008540,2.9966,148.8,148.75,2.4873]
[1718307008745,7.6,148.77,148.75,2.4873]
[1718307009562,7.6,148.77,148.76,2.4872]
[1718307009866,7.6,148.77,148.75,2.4872]
[1718307010264,7.6,148.76,148.66,47.48474915]
[1718307010473,7.6,148.72,148.68,2.4884]
[1718307010783,2.4875,148.74,148.66,46.98685299]
[1718307010784,6.099,148.74,148.66,2.4888]
[1718307011070,7.6,148.67,148.62,2.4894]
[1718307011237,4.9765,148.7,148.61,17.5058]
[1718307011436,7.6,148.66,148.62,2.4894]
[1718307011641,7.6,148.66,148.63,2.4893]
[1718307011848,7.6,148.67,148.64,2.4891]
[1718307012151,7.6,148.67,148.65,2.489]
[1718307012351,7.6,148.66,148.61,15.0162]
[1718307012675,7.6,148.65,148.61,2.4896]
[1718307013365,7.6,148.65,148.62,2.4895]
[1718307013574,7.6,148.65,148.61,2.4896]
[1718307013868,7.6,148.63,148.6,2.4898]
[1718307014042,7.6,148.63,148.57,16.1693]
[1718307014241,0.17,148.64,148.57,2.4902]
[1718307014441,7.6,148.59,148.56,2.4904]
[1718307014638,2.4894,148.63,148.56,2.4904]
[1718307014841,0.51,148.62,148.6,2.4898]
[1718307015068,7.6,148.61,148.6,2.4898]
[1718307015270,7.6,148.61,148.59,2.4899]
[1718307015866,7.6,148.6,148.55,7.6]
[1718307016048,7.6,148.57,148.53,16.1693]
[1718307016254,7.6,148.57,148.54,2.4908]
[1718307016863,7.6,148.56,148.53,2.491]
[1718307017073,7.6,148.56,148.52,2.4911]
[1718307017443,7.6,148.55,148.53,2.4909]
[1718307017666,0.34,148.59,148.5,6.5963]
[1718307017863,0.17,148.6,148.56,2.4904]
[1718307018079,7.6,148.58,148.56,2.4904]
[1718307018265,7.6,148.58,148.55,2.4906]
[1718307018444,7.6,148.57,148.55,2.4906]
[1718307018654,7.6,148.57,148.56,2.4905]
[1718307018853,45.51,148.61,148.57,2.4902]
[1718307019073,7.6,148.6,148.58,2.4902]
[1718307019374,7.6,148.6,148.57,2.4903]
[1718307019744,0.51,148.61,148.57,2.4903]
[1718307019968,7.6,148.6,148.58,2.4902]
[1718307020348,0.51,148.61,148.59,2.49]
[1718307020546,6.5415,148.67,148.57,23.7452]
[1718307020766,6.5415,148.67,148.61,2.4897]
[1718307020953,6.5415,148.67,148.62,2.4895]
[1718307021160,18.2758,148.69,148.61,2.4897]
[1718307021161,7.6,148.64,148.61,2.4897]
[1718307021572,7.6,148.64,148.62,2.4895]
[1718307021791,15.7874,148.69,148.58,6.1362]
[1718307021999,6.0497,148.71,148.58,6.1362]
[1718307022000,7.6,148.67,148.65,2.4889]
[1718307022147,7.6,148.68,148.62,7.6]
[1718307022351,7.6,148.67,148.64,2.4892]
[1718307022576,7.6,148.67,148.61,12.5794]
[1718307022577,7.6,148.67,148.63,2.4893]
[1718307022789,7.6,148.66,148.62,22.4895]
[1718307023085,0.17,148.65,148.58,6.1362]
[1718307023296,7.6,148.63,148.58,6.1362]
[1718307023467,7.6,148.68,148.58,6.1362]
[1718307023468,6.0497,148.71,148.6,7.4697]
[1718307023658,6.0497,148.71,148.64,2.4891]
[1718307023659,7.6,148.66,148.64,2.4891]
[1718307023855,7.6,148.66,148.61,7.6]
[1718307024183,7.6,148.63,148.59,20.0]
[1718307024374,7.6,148.63,148.61,2.4897]
[1718307024577,7.6,148.64,148.61,2.4897]
[1718307025085,7.6,148.65,148.62,2.4895]
[1718307025253,7.6,148.65,148.61,2.4896]
[1718307025452,7.6,148.63,148.6,2.4898]
[1718307025876,7.6,148.63,148.59,22.4899]
[1718307026078,45.17,148.64,148.58,8.6263]
[1718307026079,7.6,148.62,148.58,8.6263]
[1718307026450,7.6,148.62,148.58,6.1362]
[1718307026655,7.6,148.63,148.61,2.4897]
[1718307026876,7.6,148.63,148.6,2.4898]
[1718307027387,7.6,148.62,148.59,2.4899]
[1718307028970,7.6,148.6,148.58,2.4901]
[1718307029287,7.6,148.6,148.57,18.6355]
[1718307029455,7.6,148.6,148.57,2.4903]
[1718307029655,7.6,148.6,148.58,2.4902]
[1718307029857,7.6,148.6,148.57,2.4902]
[1718307030362,0.17,148.64,148.6,2.4897]
[1718307030578,7.6,148.62,148.59,2.49]
[1718307030757,47.999,148.65,148.58,2.4902]
[1718307030758,7.6,148.61,148.58,2.4902]
[1718307030958,7.6,148.61,148.57,2.4903]
[1718307031176,7.6,148.6,148.57,2.4903]
[1718307031367,7.6,148.61,148.58,2.4902]
[1718307031574,7.6,148.61,148.56,4.9809]
[1718307031774,7.6,148.61,148.59,2.4899]
[1718307032163,7.6,148.62,148.59,2.4899]
[1718307033268,7.6,148.62,148.6,2.4898]
[1718307033859,0.17,148.63,148.61,2.4897]
[1718307033860,7.6,148.63,148.61,2.4897]
[1718307034679,7.6,148.63,148.6,2.4898]
[1718307035479,7.6,148.63,148.59,2.4899]
[1718307035781,7.6,148.63,148.6,2.4898]
[1718307035974,7.6,148.64,148.61,2.4897]
[1718307036370,268.7757,148.69,148.6,9.9593]
[1718307036571,7.6,148.66,148.63,2.4893]
[1718307037257,7.6,148.66,148.62,2.4894]
[1718307037492,7.6,148.65,148.61,20.0]
[1718307037685,7.6,148.64,148.6,22.4898]
[1718307038095,7.6,148.64,148.61,2.4897]
[1718307038663,7.6,148.64,148.6,22.4898]
[1718307039391,7.6,148.64,148.61,2.4897]
[1718307040965,7.6,148.64,148.6,22.4898]
[1718307041478,7.6,148.64,148.6,2.4898]
[1718307041689,7.6,148.64,148.61,2.4896]
[1718307042891,7.6,148.63,148.61,2.4896]
[1718307043302,7.6,148.63,148.6,2.4899]
[1718307043509,7.6,148.62,148.6,2.4898]
[1718307044826,7.6,148.62,148.59,2.4899]
[1718307044991,7.6,148.61,148.59,2.4899]
[1718307045914,7.6,148.61,148.6,2.4899]
[1718307046697,7.6,148.61,148.59,2.4899]
[1718307046896,7.6,148.6,148.58,2.4901]
[1718307047510,7.6,148.6,148.57,20.0]
[1718307047511,7.6,148.59,148.57,2.4903]
[1718307048018,7.6,148.59,148.58,2.4902]
[1718307048225,0.34,148.61,148.58,2.4902]
[1718307048226,0.17,148.61,148.58,2.4902]
[1718307048406,7.6,148.59,148.57,2.4904]
[1718307049627,7.6,148.59,148.58,2.4902]
[1718307050095,7.6,148.59,148.57,2.4903]
[1718307050301,7.6,148.59,148.56,2.4904]
[1718307050717,7.6,148.59,148.57,2.4903]
[1718307052307,16.1645,148.63,148.56,22.4148]
[1718307052618,16.1645,148.63,148.59,2.49]
[1718307052619,7.6,148.6,148.59,2.49]
[1718307053205,7.6,148.61,148.58,2.4901]
[1718307053404,7.6,148.6,148.58,2.4901]
[1718307054747,7.6,148.59,148.57,2.4903]
[1718307055419,7.6,148.59,148.56,2.4905]
[1718307056540,7.6,148.58,148.56,2.4905]
[1718307057344,7.6,148.59,148.56,2.4905]
[1718307058038,7.6,148.59,148.57,2.4904]
[1718307058346,7.6,148.59,148.56,2.4904]
[1718307059333,7.6,148.59,148.57,2.4903]
[1718307060323,2.4897,148.61,148.54,4.9818]
[1718307060545,7.6,148.58,148.54,4.9818]
[1718307060715,7.6,148.58,148.55,2.4906]
[1718307062546,0.51,148.6,148.54,2.4908]
[1718307062732,7.6,148.56,148.51,18.6896]
[1718307063043,7.6,148.56,148.53,2.491]
[1718307063623,7.6,148.55,148.53,2.491]
[1718307064045,2.4901,148.59,148.54,2.4909]
[1718307064250,0.51,148.6,148.51,18.5638]
[1718307064251,0.34,148.58,148.53,4.982]
[1718307064435,7.6,148.56,148.54,2.4908]
[1718307065934,7.6,148.55,148.5,4.9829]
[1718307066132,2.6603,148.58,148.5,12.4576]
[1718307066329,7.6,148.55,148.53,2.491]
[1718307067026,7.6,148.55,148.52,2.4911]
[1718307067229,7.6,148.55,148.51,2.4913]
[1718307067447,7.77,148.54,148.48,15.7729]
[1718307067754,7.6,148.52,148.5,2.4915]
[1718307067928,0.17,148.55,148.49,4.9834]
[1718307068123,7.6,148.53,148.49,4.9834]
[1718307068317,7.6,148.53,148.5,2.4915]
[1718307068638,7.6,148.52,148.47,4.9838]
[1718307068838,7.6,148.51,148.48,2.4917]
[1718307069220,0.17,148.53,148.48,2.4917]
[1718307069421,7.6,148.51,148.49,2.4917]
[1718307069862,7.6,148.5,148.48,2.4919]
[1718307070359,0.51,148.53,148.48,2.4919]
[1718307070646,7.6,148.5,148.48,2.4919]
[1718307071350,45.51,148.53,148.48,2.4919]
[1718307071562,7.6,148.51,148.49,2.4917]
[1718307071729,7.6,148.51,148.48,2.4918]
[1718307072543,7.6,148.51,148.47,2.492]
[1718307072935,7.6,148.5,148.47,2.492]
[1718307074255,7.6,148.5,148.48,2.4918]
[1718307075159,7.6,148.5,148.47,2.4919]
[1718307076177,7.6,148.5,148.48,2.4919]
[1718307076536,45.51,148.53,148.48,2.4919]
[1718307076850,7.6,148.5,148.48,2.4919]
[1718307077043,0.51,148.53,148.49,2.4917]
[1718307077262,7.6,148.51,148.49,2.4916]
[1718307077966,7.6,148.51,148.47,4.9841]
[1718307077967,7.6,148.51,148.48,2.4918]